bitfinex/quotes_BTCUSD_20240715
["timestamp","ask_amount","ask_price","bid_price","bid_amount"]
[1721016318523,0.2526884,62949.0,62948.0,0.00792]
[1721016318732,0.54582319,62949.0,62948.0,0.00792]
[1721016318940,1.45961021,62949.0,62948.0,0.00792]
[1721016319148,1.17620289,62949.0,62948.0,0.02192]
[1721016319350,1.39495208,62949.0,62948.0,0.02192]
[1721016319558,1.39495208,62949.0,62938.0,0.00019126]
[1721016319559,0.429986,62939.0,62938.0,0.00019126]
[1721016319768,0.95258319,62939.0,62938.0,0.00019126]
[1721016320177,0.7141044,62939.0,62938.0,0.00019126]
[1721016320350,0.28511176,62939.0,62938.0,0.00019126]
[1721016320581,0.23760619,62939.0,62938.0,0.00019126]
[1721016321135,0.38060119,62939.0,62938.0,0.00019126]
[1721016321741,0.37960119,62939.0,62938.0,0.00019126]
[1721016322008,0.71410914,62939.0,62938.0,0.00019126]
[1721016322152,0.42811814,62939.0,62938.0,0.00019126]
[1721016322353,0.42811398,62939.0,62938.0,0.00019126]
[1721016322555,0.28511898,62939.0,62938.0,0.00019126]
[1721016322752,0.67259305,62939.0,62938.0,0.00119126]
[1721016322952,1.02385194,62939.0,62938.0,0.00119126]
[1721016323165,1.00010378,62939.0,62938.0,0.00119126]
[1721016323551,1.00010378,62939.0,62938.0,0.00210426]
[1721016323755,0.72571086,62939.0,62938.0,0.00210426]
[1721016324121,0.67819113,62939.0,62938.0,0.00210426]
[1721016324874,0.67719113,62939.0,62938.0,0.00210426]
[1721016325085,0.66728408,62939.0,62938.0,0.00210426]
[1721016325296,0.67719133,62939.0,62938.0,0.00210426]
[1721016325468,0.7247005,62939.0,62938.0,0.00210426]
[1721016325679,0.72570055,62939.0,62938.0,0.00210426]
[1721016325875,0.96418233,62939.0,62938.0,0.00210426]
[1721016326027,0.97018233,62939.0,62938.0,0.00210426]
[1721016327408,1.0344175,62939.0,62938.0,0.00210426]
[1721016328137,1.0344175,62939.0,62938.0,0.00164181]
[1721016328290,1.02450933,62939.0,62938.0,0.00164181]
[1721016328485,1.01766215,62939.0,62938.0,0.00164181]
[1721016328702,1.16356215,62939.0,62938.0,0.00164181]
[1721016328894,1.11008279,62939.0,62938.0,0.00164181]
[1721016329095,1.12673107,62939.0,62938.0,0.00164181]
[1721016329272,1.13273107,62939.0,62938.0,0.00164181]
[1721016329498,1.18020163,62939.0,62938.0,0.00164181]
[1721016330903,0.1422,62921.0,62920.0,0.05706353]
[1721016331104,0.1422,62921.0,62920.0,0.00306353]
[1721016331105,0.3699,62921.0,62920.0,0.00306353]
[1721016332012,0.001,62917.0,62916.0,0.063742]
[1721016332234,0.2267,62921.0,62915.0,0.143048]
[1721016332235,0.1399,62916.0,62915.0,0.143048]
[1721016332489,0.1399,62916.0,62914.0,0.054]
[1721016332490,0.1453,62915.0,62914.0,0.054]
[1721016332714,0.1453,62914.0,62913.0,0.197053]
[1721016333170,0.1443,62914.0,62913.0,0.197053]
[1721016333416,0.1443,62913.0,62910.0,0.054]
[1721016333659,0.1443,62911.0,62910.0,0.483184]
[1721016334339,0.1443,62918.0,62917.0,0.197044]
[1721016334584,0.1443,62918.0,62917.0,0.483135]
[1721016334836,0.1443,62918.0,62917.0,0.197044]
[1721016334837,0.1453,62918.0,62917.0,0.197044]
[1721016335083,0.1453,62918.0,62915.0,0.340098]
[1721016335322,0.1453,62916.0,62915.0,0.483146]
[1721016335775,0.1453,62916.0,62915.0,0.482146]
[1721016335776,0.1443,62916.0,62915.0,0.482146]
[1721016336703,0.1453,62916.0,62915.0,0.768246]
[1721016337596,0.1463,62916.0,62915.0,0.482146]
[1721016338587,0.1463,62916.0,62915.0,0.428146]
[1721016338817,0.1463,62916.0,62915.0,0.49238116]
[1721016339292,0.1463,62916.0,62915.0,0.01023516]
[1721016339548,0.1453,62916.0,62915.0,0.01023516]
[1721016339776,0.001,62912.0,62911.0,0.197057]
[1721016340026,0.1419,62912.0,62911.0,0.197057]
[1721016340257,0.1409,62912.0,62911.0,0.197057]
[1721016341690,0.1409,62912.0,62911.0,0.483175]
[1721016341933,0.1409,62912.0,62854.0,0.19819527]
[1721016341934,0.001,62909.0,62907.0,0.054]
[1721016342164,0.0641,62908.0,62907.0,0.260819]
[1721016342410,0.0641,62908.0,62907.0,0.197068]
[1721016342657,0.1434,62908.0,62907.0,0.197068]
[1721016343356,0.1424,62908.0,62907.0,0.196068]
[1721016343876,0.1434,62908.0,62907.0,0.196068]
[1721016344358,0.1434,62908.0,62907.0,0.207068]
[1721016344359,0.1444,62908.0,62907.0,0.207068]
[1721016345228,0.1444,62908.0,62907.0,0.011]
[1721016345229,0.3711,62908.0,62907.0,0.011]
[1721016345439,0.807298,62908.0,62907.0,0.011]
[1721016345713,0.81720963,62908.0,62907.0,0.011]
[1721016345960,0.81720963,62908.0,62894.0,0.286194]
[1721016345961,0.001,62894.0,62893.0,0.000913]
[1721016346193,0.001,62894.0,62893.0,0.01106359]
[1721016346194,0.519597,62894.0,62893.0,0.01106359]
[1721016346430,1.385182,62894.0,62893.0,0.000913]
[1721016346658,1.385182,62894.0,62883.0,0.063775]
[1721016346659,0.283416,62886.0,62883.0,0.063775]
[1721016346878,0.37691514,62886.0,62881.0,0.053]
[1721016347113,0.367,62886.0,62881.0,0.053]
[1721016347349,0.367,62886.0,62879.0,0.053]
[1721016347870,0.367,62886.0,62881.0,0.143126]
[1721016348113,0.367,62886.0,62882.0,0.143123]
[1721016348361,0.1,62893.0,62891.0,0.196104]
[1721016348362,0.001,62892.0,62891.0,0.196104]
[1721016348593,0.0626,62893.0,62892.0,0.13405238]
[1721016348879,0.0626,62893.0,62892.0,0.08105238]
[1721016349106,0.0626,62893.0,62892.0,0.09124381]
[1721016349573,0.2057,62893.0,62892.0,0.01019143]
[1721016349832,0.0626,62893.0,62892.0,0.01019143]
[1721016350090,0.0626,62893.0,62885.0,0.009152]
[1721016350091,0.001,62888.0,62886.0,0.196115]
[1721016350324,0.0616,62893.0,62889.0,0.196109]
[1721016350325,0.2277,62890.0,62889.0,0.196109]
[1721016350547,0.2277,62890.0,62887.0,0.286226]
[1721016350548,0.001,62888.0,62887.0,0.01018964]
[1721016350778,0.001,62888.0,62885.0,0.009152]
[1721016350779,0.001,62886.0,62885.0,0.009152]
[1721016351769,0.85548,62886.0,62885.0,0.009152]
[1721016353321,0.86248,62886.0,62885.0,0.009152]
[1721016353735,0.85548,62886.0,62885.0,0.009152]
[1721016354234,0.86248,62886.0,62885.0,0.009152]
[1721016354704,1.148712,62886.0,62885.0,0.009152]
[1721016354927,1.28184006,62886.0,62885.0,0.009152]
[1721016355411,0.95548,62886.0,62885.0,0.009152]
[1721016355644,0.383016,62886.0,62885.0,0.009152]
[1721016355890,0.676248,62886.0,62885.0,0.009152]
[1721016356131,0.96248,62886.0,62885.0,0.009152]
[1721016356590,0.97373544,62886.0,62885.0,0.009152]
[1721016357506,0.99181335,62886.0,62885.0,0.009152]
[1721016357971,0.97373544,62886.0,62885.0,0.009152]
[1721016358436,0.96673544,62886.0,62885.0,0.009152]
[1721016359575,1.25996744,62886.0,62885.0,0.009152]
[1721016359806,1.27662692,62886.0,62885.0,0.009152]
[1721016360799,1.54432692,62886.0,62885.0,0.009152]
[1721016361030,1.53732692,62886.0,62885.0,0.009152]
[1721016361495,1.54432692,62886.0,62885.0,0.009152]
[1721016364997,1.74432692,62886.0,62885.0,0.009152]
[1721016365209,1.74432692,62886.0,62875.0,0.009152]
[1721016365210,0.499415,62876.0,62875.0,0.009152]
[1721016365415,0.805115,62876.0,62875.0,0.009152]
[1721016368252,0.798115,62876.0,62875.0,0.009152]
[1721016369026,0.798115,62876.0,62875.0,0.062152]
[1721016369027,0.2897,62876.0,62875.0,0.062152]
[1721016369208,0.2277,62876.0,62875.0,0.205293]
[1721016369415,0.2277,62876.0,62875.0,0.21562668]
[1721016369785,0.2277,62876.0,62875.0,0.01948568]
[1721016370254,0.367,62876.0,62875.0,0.01948568]
[1721016371214,0.510138,62876.0,62875.0,0.01948568]
[1721016371421,0.510138,62876.0,62875.0,0.009152]
[1721016371622,0.510138,62876.0,62875.0,0.01947125]
[1721016371851,0.510138,62876.0,62875.0,0.009152]
[1721016372372,0.9123808,62876.0,62875.0,0.009152]
[1721016372574,0.9053808,62876.0,62875.0,0.009152]
[1721016372699,0.9123808,62876.0,62875.0,0.009152]
[1721016372899,0.803415,62876.0,62875.0,0.009152]
[1721016374057,0.796415,62876.0,62875.0,0.009152]
[1721016374489,1.375969,62876.0,62875.0,0.009152]
[1721016374782,0.1452,62866.0,62865.0,0.009163]
[1721016374923,0.3719,62866.0,62865.0,0.01949054]
[1721016375638,0.515061,62866.0,62865.0,0.01949054]
[1721016375782,0.801384,62866.0,62865.0,0.01949054]
[1721016375982,0.801384,62866.0,62865.0,0.009163]
[1721016376182,0.81130244,62866.0,62865.0,0.009163]
[1721016376476,1.09762544,62866.0,62865.0,0.009163]
[1721016377038,0.81130244,62866.0,62865.0,0.009163]
[1721016377240,0.30071844,62866.0,62865.0,0.009163]
[1721016377592,0.2908,62866.0,62865.0,0.009163]
[1721016377720,0.433961,62866.0,62865.0,0.009163]
[1721016377921,0.43376963,62866.0,62865.0,0.009163]
[1721016378149,0.29060863,62866.0,62865.0,0.009163]
[1721016378347,0.4436881,62866.0,62865.0,0.009163]
[1721016378553,0.3005271,62866.0,62865.0,0.009163]
[1721016378955,0.30052706,62866.0,62865.0,0.009163]
[1721016381878,0.31200287,62866.0,62865.0,0.009163]
[1721016382290,0.31200258,62866.0,62865.0,0.009163]
[1721016382687,0.45516358,62866.0,62865.0,0.009163]
[1721016383302,0.74148658,62866.0,62865.0,0.009163]
[1721016383500,0.88182664,62866.0,62865.0,0.009163]
[1721016383703,0.74148658,62866.0,62865.0,0.009163]
[1721016383951,0.45516358,62866.0,62865.0,0.009163]
[1721016385630,0.45516381,62866.0,62865.0,0.009163]
[1721016388311,1.11380981,62866.0,62865.0,0.009163]
[1721016388509,1.06667981,62866.0,62865.0,0.009163]
[1721016388746,1.06668044,62866.0,62865.0,0.009163]
[1721016389115,1.06751044,62866.0,62865.0,0.009163]
[1721016389321,1.06751053,62866.0,62865.0,0.009163]
[1721016389528,0.143182,62857.0,62856.0,0.000913]
[1721016389736,0.24010109,62857.0,62856.0,0.000913]
[1721016389936,0.81282909,62857.0,62856.0,0.000913]
[1721016390360,0.007,62846.0,62844.0,0.009174]
[1721016390579,0.724045,62845.0,62844.0,0.009174]
[1721016390784,0.001,62840.0,62838.0,0.51628973]
[1721016391034,0.001,62840.0,62839.0,0.491832]
[1721016391035,0.00991909,62840.0,62839.0,0.491832]
[1721016391203,0.001,62845.0,62844.0,0.053]
[1721016391421,0.001,62845.0,62844.0,0.196211]
[1721016391422,0.0099216,62845.0,62844.0,0.196211]
[1721016391623,0.001,62850.0,62849.0,0.053]
[1721016391826,0.2267,62852.0,62851.0,0.482586]
[1721016392068,0.2267,62852.0,62851.0,0.768977]
[1721016392394,0.2277,62852.0,62851.0,0.482586]
[1721016392798,0.2267,62852.0,62851.0,0.482586]
[1721016393082,0.2267,62852.0,62851.0,0.768977]
[1721016393234,0.001,62856.0,62855.0,0.196186]
[1721016393437,0.001,62856.0,62855.0,0.482559]
[1721016394164,0.01766269,62857.0,62856.0,0.143184]
[1721016394371,0.0275819,62857.0,62856.0,0.196184]
[1721016394561,0.0275819,62857.0,62856.0,0.143184]
[1721016394773,0.0275819,62857.0,62856.0,0.196184]
[1721016395092,0.0275819,62857.0,62856.0,0.143184]
[1721016395381,0.02758216,62857.0,62856.0,0.143184]
[1721016395874,0.02758215,62857.0,62856.0,0.143184]
[1721016396072,0.02758215,62857.0,62856.0,0.196184]
[1721016396630,0.02758215,62857.0,62856.0,0.143184]
[1721016396837,0.001,62855.0,62854.0,0.143187]
[1721016397239,0.01091908,62855.0,62854.0,0.143187]
[1721016397640,0.01091908,62855.0,62852.0,0.053]
[1721016397844,0.001,62853.0,62852.0,0.196191]
[1721016398060,0.001,62853.0,62851.0,0.28639]
[1721016398061,0.01766269,62857.0,62856.0,0.053]
[1721016398270,0.01766269,62857.0,62856.0,0.196184]
[1721016398271,0.02758202,62857.0,62856.0,0.196184]
[1721016398468,0.02758166,62857.0,62856.0,0.196184]
[1721016398679,0.02758166,62857.0,62856.0,0.20771895]
[1721016401629,0.01766269,62857.0,62856.0,0.01153495]
[1721016401851,0.0275818,62857.0,62856.0,0.01153495]
[1721016402000,0.001,62852.0,62851.0,0.429584]
[1721016402206,0.001,62849.0,62845.0,0.053]
[1721016402430,0.001,62841.0,62840.0,0.053]
[1721016402632,0.001,62843.0,62842.0,0.053]
[1721016402840,0.001,62843.0,62842.0,0.482648]
[1721016403044,0.00992097,62843.0,62842.0,0.482648]
[1721016403399,0.37424336,62850.0,62846.0,0.196207]
[1721016403400,0.01092089,62847.0,62846.0,0.196207]
[1721016403602,0.00992084,62847.0,62846.0,0.482621]
[1721016403806,0.00992084,62847.0,62846.0,0.196207]
[1721016404184,0.001,62846.0,62845.0,0.196209]
[1721016404393,0.01092084,62846.0,62845.0,0.196209]
[1721016404732,0.00992084,62846.0,62845.0,0.482627]
[1721016404932,0.04864177,62848.0,62847.0,0.053]
[1721016405129,0.010921,62848.0,62847.0,0.196204]
[1721016405311,0.05756277,62848.0,62847.0,1.196531]
[1721016405552,0.009921,62848.0,62847.0,1.196531]
[1721016405766,0.001,62853.0,62847.0,0.480509]
[1721016405767,0.00991948,62852.0,62847.0,0.480509]
[1721016406027,0.01666269,62853.0,62852.0,0.768967]
[1721016406189,0.02658211,62853.0,62852.0,0.768967]
[1721016406596,0.02758211,62853.0,62852.0,0.768967]
[1721016406800,0.02758211,62853.0,62849.0,0.1432]
[1721016406801,0.001,62850.0,62849.0,0.1432]
[1721016407201,0.01091942,62850.0,62849.0,0.1962]
[1721016407425,0.01091942,62850.0,62849.0,0.4826]
[1721016407827,0.00991942,62850.0,62849.0,0.4826]
[1721016408028,0.001,62852.0,62851.0,0.053]
[1721016408231,0.01091977,62852.0,62851.0,0.482586]
[1721016408621,0.01091974,62852.0,62851.0,0.482586]
[1721016409000,0.01091974,62852.0,62851.0,0.143195]
[1721016409203,0.001,62849.0,62844.0,0.339422]
[1721016409404,0.23761974,62848.0,62847.0,0.143202]
[1721016409606,0.23761974,62848.0,62847.0,0.429611]
[1721016410221,0.001,62843.0,62842.0,0.429648]
[1721016411000,0.01091974,62843.0,62842.0,0.429648]
[1721016411486,0.00992078,62843.0,62842.0,0.482648]
[1721016411685,0.04765552,62847.0,62845.0,0.053]
[1721016411887,0.04765552,62847.0,62846.0,0.196207]
[1721016411888,0.04865552,62847.0,62846.0,0.196207]
[1721016412061,0.05857614,62847.0,62846.0,0.196207]
[1721016412261,0.05757614,62847.0,62846.0,0.769035]
[1721016412669,0.00992062,62847.0,62846.0,0.769035]
[1721016412864,0.01092062,62847.0,62846.0,0.769035]
[1721016413128,0.00992062,62847.0,62846.0,0.769035]
[1721016413547,0.00992062,62847.0,62846.0,0.7806075]
[1721016413930,0.04865552,62849.0,62847.0,0.339409]
[1721016414137,0.04865552,62849.0,62848.0,0.27725438]
[1721016414138,0.001,62849.0,62848.0,0.27725438]
[1721016414313,0.0109202,62849.0,62848.0,0.28882489]
[1721016414672,0.05757144,62849.0,62848.0,0.57522989]
[1721016414883,0.0099202,62849.0,62848.0,0.57522989]
[1721016415085,0.0099202,62849.0,62848.0,0.98183489]
[1721016415234,0.01666269,62853.0,62850.0,0.399396]
[1721016415235,0.00991913,62851.0,62850.0,0.399396]
[1721016415434,0.01666269,62853.0,62852.0,0.256193]
[1721016415639,0.02658149,62853.0,62852.0,0.63414653]
[1721016415851,0.02658149,62853.0,62852.0,0.92053353]
[1721016416130,0.02,62857.0,62856.0,0.542552]
[1721016416354,0.02,62857.0,62856.0,1.35954038]
[1721016416583,0.02,62857.0,62856.0,1.65745255]
[1721016418190,0.02,62857.0,62856.0,1.20703217]
[1721016418392,0.02,62857.0,62856.0,1.06683217]
[1721016419102,0.02,62857.0,62856.0,0.78046417]
[1721016419546,0.02,62857.0,62856.0,0.01154417]
[1721016419547,0.021,62857.0,62856.0,0.01154417]
[1721016419750,0.1077105,62857.0,62856.0,0.06454417]
[1721016419951,0.0669,62856.0,62855.0,0.143185]
[1721016420126,0.001,62854.0,62853.0,0.196189]
[1721016420326,0.0104105,62854.0,62853.0,0.196189]
[1721016420529,0.04765373,62856.0,62855.0,0.143186]
[1721016420770,0.01096299,62856.0,62855.0,0.053]
[1721016421147,0.01096299,62856.0,62855.0,0.196186]
[1721016421321,0.05963504,62856.0,62855.0,0.14624953]
[1721016421723,0.05963504,62856.0,62855.0,0.19924953]
[1721016421924,0.05963504,62856.0,62855.0,0.14624953]
[1721016422124,0.08347107,62856.0,62855.0,0.14624953]
[1721016422325,0.001,62854.0,62853.0,0.00306353]
[1721016422531,0.001,62854.0,62853.0,0.43263653]
[1721016422532,0.23866299,62854.0,62853.0,0.43263653]
[1721016422669,0.23866299,62854.0,62853.0,0.429573]
[1721016423072,0.01096299,62854.0,62853.0,0.768955]
[1721016425333,0.01096299,62854.0,62853.0,1.055337]
[1721016425544,0.01096299,62854.0,62853.0,0.143191]
[1721016425545,0.01196299,62854.0,62853.0,0.143191]
[1721016425725,0.30476299,62854.0,62853.0,0.143191]
[1721016425931,0.001,62849.0,62848.0,0.482606]
[1721016426765,0.001,62849.0,62848.0,0.196202]
[1721016426943,0.0596355,62849.0,62848.0,0.20772177]
[1721016427141,0.01095399,62849.0,62848.0,0.20772177]
[1721016427463,0.0586355,62849.0,62848.0,0.20772177]
[1721016427662,0.0586355,62849.0,62848.0,0.49412677]
[1721016427866,0.01095399,62849.0,62848.0,0.49412677]
[1721016428474,0.01095399,62849.0,62848.0,0.78053177]
[1721016429054,0.04768151,62851.0,62850.0,0.196198]
[1721016429253,0.05842031,62851.0,62850.0,0.85004238]
[1721016429514,0.0107388,62851.0,62850.0,0.86157803]
[1721016429822,0.0107388,62851.0,62850.0,0.01153565]
[1721016429823,0.05942286,62851.0,62850.0,0.01153565]
[1721016430149,0.05942286,62851.0,62849.0,0.143198]
[1721016430150,0.001,62850.0,62849.0,0.143198]
[1721016430432,0.059682,62850.0,62849.0,0.196198]
[1721016430630,0.059682,62850.0,62849.0,0.1562469]
[1721016430804,0.059682,62850.0,62849.0,0.16059653]
[1721016431189,0.0119979,62850.0,62849.0,0.16059653]
[1721016431799,0.0119979,62850.0,62849.0,0.01739853]
[1721016432009,0.0119979,62850.0,62849.0,0.0130489]
[1721016432212,0.0119979,62850.0,62847.0,0.143204]
[1721016432434,0.2277,62848.0,62845.0,0.053]
[1721016432585,0.001,62845.0,62844.0,0.144123]
[1721016432785,0.001,62845.0,62844.0,0.000913]
[1721016432786,0.3029069,62845.0,62844.0,0.000913]
[1721016433015,0.7154364,62845.0,62844.0,0.000913]
[1721016433238,0.88261576,62845.0,62844.0,0.000913]
[1721016433411,1.03074227,62845.0,62844.0,0.000913]
[1721016433788,1.17382864,62845.0,62844.0,0.000913]
[1721016434201,1.17379794,62845.0,62844.0,0.000913]
[1721016434401,1.27707895,62845.0,62844.0,0.000913]
[1721016434620,1.13402274,62845.0,62844.0,0.000913]
[1721016435027,1.03074227,62845.0,62844.0,0.000913]
[1721016435232,1.17376851,62845.0,62844.0,0.000913]
[1721016435876,1.03074227,62845.0,62844.0,0.000913]
[1721016436133,0.73732427,62845.0,62844.0,0.000913]
[1721016436337,0.30769727,62845.0,62844.0,0.000913]
[1721016436693,0.25957076,62845.0,62844.0,0.000913]
[1721016436896,0.10719133,62845.0,62844.0,0.76997]
[1721016437154,0.01187076,62845.0,62844.0,0.76997]
[1721016437458,0.01187076,62845.0,62844.0,0.197124]
[1721016437672,0.0831661,62845.0,62844.0,0.000913]
[1721016437872,0.10699981,62845.0,62844.0,0.000913]
[1721016438179,0.01167924,62845.0,62844.0,0.483547]
[1721016438379,0.08235625,62845.0,62844.0,0.483547]
[1721016438581,0.01087076,62845.0,62844.0,0.483547]
[1721016438757,0.01087076,62845.0,62844.0,0.76997]
[1721016438964,0.01087076,62845.0,62844.0,0.430547]
[1721016439170,0.08316473,62845.0,62844.0,0.430547]
[1721016439370,0.08373574,62845.0,62844.0,0.430547]
[1721016440776,0.08373574,62845.0,62844.0,0.483547]
[1721016441101,0.01225323,62845.0,62844.0,0.483547]
[1721016441305,0.09531002,62847.0,62846.0,0.769035]
[1721016441306,0.09611259,62847.0,62846.0,0.769035]
[1721016441490,0.0124302,62847.0,62846.0,0.769035]
[1721016441949,0.08390507,62847.0,62846.0,0.769035]
[1721016442566,0.2267,62848.0,62847.0,0.769022]
[1721016442767,0.01154916,62848.0,62847.0,1.115431]
[1721016442971,0.01666269,62852.0,62851.0,0.768977]
[1721016443267,0.02819382,62852.0,62851.0,0.768977]
[1721016443470,0.02819382,62852.0,62851.0,0.78357326]
[1721016443705,0.02824703,62852.0,62851.0,1.21101664]
[1721016443855,0.01666269,62852.0,62851.0,1.21101664]
[1721016444060,0.01666269,62852.0,62851.0,1.15101664]
[1721016446416,0.01666269,62852.0,62851.0,0.86462564]
[1721016447193,0.02822698,62852.0,62851.0,0.86462564]
[1721016447607,0.01666269,62852.0,62851.0,1.15101664]
[1721016448223,0.02793992,62852.0,62851.0,0.78357326]
[1721016448433,0.02794264,62852.0,62851.0,0.78357326]
[1721016448675,0.02794264,62852.0,62851.0,0.73057326]
[1721016448873,0.02794264,62852.0,62851.0,0.78357326]
[1721016448874,0.16824264,62852.0,62851.0,0.78357326]
[1721016449090,0.16824287,62852.0,62851.0,0.78357326]
[1721016449448,0.15696269,62852.0,62851.0,0.78357326]
[1721016449748,0.15777117,62852.0,62851.0,0.78357326]
[1721016449954,0.15696269,62852.0,62851.0,0.78357326]
[1721016450353,0.15777117,62852.0,62851.0,0.78357326]
[1721016450550,0.14110848,62852.0,62851.0,0.78357326]
[1721016450826,0.14110848,62852.0,62851.0,0.49718226]
[1721016451003,0.14110848,62852.0,62851.0,0.21079126]
[1721016451235,0.14110848,62852.0,62851.0,0.01459626]
[1721016451499,0.14110848,62852.0,62848.0,0.053]
[1721016451750,0.00080848,62850.0,62849.0,0.1962]
[1721016451902,0.00080848,62849.0,62848.0,0.053]
[1721016452106,0.00080848,62848.0,62846.0,0.053]
[1721016452304,0.07890848,62845.0,62844.0,0.000913]
[1721016452514,0.14420848,62845.0,62844.0,0.000913]
[1721016454245,0.58047441,62845.0,62844.0,0.000913]
[1721016454447,0.96689241,62845.0,62844.0,0.000913]
[1721016455667,0.95989241,62845.0,62844.0,0.000913]
[1721016456324,0.67347441,62845.0,62844.0,0.000913]
[1721016456881,0.73256478,62845.0,62844.0,0.000913]
[1721016457291,0.73256406,62845.0,62844.0,0.000913]
[1721016457534,0.68438383,62845.0,62844.0,0.000913]
[1721016457741,0.73250425,62845.0,62844.0,0.000913]
[1721016458519,0.30287725,62845.0,62844.0,0.000913]
[1721016458636,0.25475683,62845.0,62844.0,0.01113932]
[1721016459054,0.27475683,62845.0,62844.0,0.01113932]
[1721016459254,0.28553502,62845.0,62844.0,0.01113932]
[1721016459917,0.42874402,62845.0,62844.0,0.01113932]
[1721016460063,0.43574402,62845.0,62844.0,0.01113932]
[1721016460685,1.01938808,62845.0,62844.0,0.000913]
[1721016460904,1.0566274,62845.0,62844.0,0.000913]
[1721016461145,1.61075111,62845.0,62844.0,0.000913]
[1721016462058,1.81075111,62845.0,62844.0,0.000913]
[1721016462268,1.61075111,62845.0,62844.0,0.000913]
[1721016462445,1.77286902,62845.0,62844.0,0.000913]
[1721016462687,1.61075111,62845.0,62844.0,0.000913]
[1721016463224,1.75351264,62845.0,62844.0,0.000913]
[1721016463450,1.75351264,62845.0,62844.0,0.053913]
[1721016463451,0.1897407,62845.0,62844.0,0.053913]
[1721016463771,0.03084569,62845.0,62844.0,0.483547]
[1721016464000,0.03118085,62845.0,62844.0,0.56459938]
[1721016464172,0.03118085,62845.0,62844.0,0.57494081]
[1721016464387,0.03162826,62845.0,62844.0,0.57494081]
[1721016464929,0.03118085,62845.0,62844.0,0.57494081]
[1721016465125,0.03118085,62845.0,62844.0,1.28898681]
[1721016465332,0.02,62845.0,62844.0,1.28898681]
[1721016465954,0.02,62845.0,62844.0,1.34898681]
[1721016466162,0.03666269,62845.0,62844.0,1.28898681]
[1721016466394,0.04687512,62845.0,62844.0,1.00256381]
[1721016466594,0.04687474,62845.0,62844.0,0.86136381]
[1721016466815,0.04687474,62845.0,62844.0,0.57494081]
[1721016466967,0.03666269,62845.0,62844.0,0.86136381]
[1721016467167,0.04658282,62845.0,62844.0,0.86136381]
[1721016470002,0.04658282,62845.0,62844.0,0.57494081]
[1721016470480,0.04658285,62845.0,62844.0,0.57494081]
[1721016470684,0.0371101,62845.0,62844.0,0.52194081]
[1721016470882,0.0371101,62845.0,62844.0,0.15446543]
[1721016470883,0.12443031,62845.0,62844.0,0.15446543]
[1721016471430,0.12443031,62845.0,62844.0,0.44088843]
[1721016471615,0.12443031,62845.0,62844.0,0.15446543]
[1721016472023,0.12443031,62845.0,62844.0,0.01125443]
[1721016472223,0.17206906,62845.0,62844.0,0.01125443]
[1721016472451,0.12443031,62845.0,62844.0,0.15446543]
[1721016472571,0.0465829,62845.0,62844.0,0.78031143]
[1721016473451,0.03666269,62845.0,62844.0,0.78031143]
[1721016473687,0.04658297,62845.0,62844.0,0.78031143]
[1721016474438,0.04703038,62845.0,62844.0,0.78031143]
[1721016474643,0.04658297,62845.0,62844.0,0.78031143]
[1721016475379,0.04658297,62845.0,62844.0,1.12683443]
[1721016476706,0.03666269,62845.0,62844.0,1.12683443]
[1721016476879,0.04658258,62845.0,62844.0,1.12683443]
[1721016477085,0.04658258,62845.0,62844.0,1.06673443]
[1721016477300,0.04658258,62845.0,62844.0,0.78031143]
[1721016477751,0.04658258,62845.0,62844.0,0.49388843]
[1721016477752,0.12598258,62845.0,62844.0,0.49388843]
[1721016477951,0.12642999,62845.0,62844.0,0.49388843]
[1721016479754,0.04658258,62845.0,62844.0,0.49388843]
[1721016479969,0.03666269,62845.0,62844.0,0.78031143]
[1721016480144,0.04658304,62845.0,62844.0,0.49388843]
[1721016480340,0.03666269,62845.0,62844.0,0.49388843]
[1721016480544,0.04658305,62845.0,62844.0,0.78031143]
[1721016482006,0.04703046,62845.0,62844.0,0.78031143]
[1721016482206,0.04703046,62845.0,62844.0,0.49388843]
[1721016482635,0.04703046,62845.0,62844.0,0.78031143]
[1721016482967,0.19163046,62845.0,62844.0,0.01125443]
[1721016483379,0.23929609,62845.0,62844.0,0.20746543]
[1721016483550,0.26311153,62845.0,62844.0,0.06425443]
[1721016483754,0.23929587,62845.0,62844.0,0.20746543]
[1721016483963,0.19163046,62845.0,62844.0,0.20746543]
[1721016484916,0.23929613,62845.0,62844.0,0.20746543]
[1721016485124,0.23929613,62845.0,62844.0,0.15446543]
[1721016485346,0.26311153,62845.0,62844.0,0.06425443]
[1721016485675,0.26311153,62845.0,62844.0,1.06673443]
[1721016485676,0.0465834,62845.0,62844.0,1.06673443]
[1721016486673,0.0465834,62845.0,62844.0,0.78031143]
[1721016487079,0.09424921,62845.0,62844.0,0.06425443]
[1721016487367,0.09424921,62845.0,62844.0,0.01125443]
[1721016487368,0.19413081,62845.0,62844.0,0.01125443]
[1721016487769,0.26562953,62845.0,62844.0,0.01125443]
[1721016487984,0.1936834,62845.0,62844.0,0.06425443]
[1721016488170,0.1936834,62845.0,62844.0,0.01125443]
[1721016488579,0.1936834,62845.0,62844.0,0.15446543]
[1721016488580,0.19413081,62845.0,62844.0,0.15446543]
[1721016488813,0.19413096,62845.0,62844.0,0.15446543]
[1721016489013,0.19496096,62845.0,62844.0,0.15446543]
[1721016489295,0.2664623,62845.0,62844.0,0.15446543]
[1721016490101,0.19496096,62845.0,62844.0,0.15446543]
[1721016490877,0.19496096,62845.0,62844.0,0.01125443]
[1721016491255,0.29029609,62845.0,62844.0,0.01125443]
[1721016492074,0.1850401,62845.0,62844.0,0.01125443]
[1721016492308,0.19451364,62845.0,62844.0,0.44088843]
[1721016492513,0.18459269,62845.0,62844.0,0.20746543]
[1721016492723,0.19451358,62845.0,62844.0,0.20746543]
[1721016493330,0.09385852,62845.0,62844.0,0.78031143]
[1721016493484,0.1189633,62845.0,62844.0,0.78031143]
[1721016493805,0.04741358,62845.0,62844.0,0.78031143]
[1721016493982,0.1189633,62845.0,62844.0,0.78031143]
[1721016494505,0.04741358,62845.0,62844.0,1.12673443]
[1721016494718,0.04741358,62845.0,62844.0,1.49415743]
[1721016495363,0.04741156,62845.0,62844.0,1.49415743]
[1721016496324,0.04741156,62845.0,62844.0,1.06673443]
[1721016496495,0.03074887,62845.0,62844.0,1.06673443]
[1721016497064,0.03055736,62845.0,62844.0,0.49388843]